{"text_format":"1","workbook":"xlsx","n_sheets":1,"sheets":["П"],"not_rendered":{"charts":0,"images":0,"macros":1,"external_links":0,"defined_names":1,"comments":0,"pivot_tables":0},"unopened":[],"bounds":{"document_bytes":16777216,"sheet_cells":100000,"rows_first":2000,"rows_last":500,"rows_between":2000,"halvings":0,"cell_chars":16384,"cell_head_chars":4096},"cells_cut":0,"cells_raw":0,"read":"whole","date_system":"1900"}

{"sheet":"П","index":0,"n_rows":30,"n_cols":52,"rows_kept":30,"cut":false,"hidden":false,"merged":[[0,0,10,0],[3,44,10,44],[3,45,3,47],[4,45,8,46],[4,47,10,47],[5,4,10,4],[5,5,10,5],[9,45,10,45],[9,46,10,46],[3,32,9,33],[3,34,9,35],[3,36,9,37],[3,38,9,39],[3,40,9,41],[3,42,9,43],[1,21,10,21],[0,23,10,23],[0,24,0,43],[1,24,2,27],[1,28,2,31],[1,32,2,35],[1,36,2,39],[1,40,2,43],[0,44,2,47],[1,8,10,8],[1,9,10,9],[1,10,10,10],[1,11,10,11],[1,12,10,12],[1,13,10,13],[1,14,10,14],[3,24,9,25],[3,26,9,27],[3,28,9,29],[3,30,9,31],[1,15,10,15],[1,16,10,16],[1,17,10,17],[1,18,10,18],[0,7,10,7],[0,8,0,21],[0,22,10,22],[0,1,10,1],[0,2,10,2],[0,3,10,3],[0,4,4,5],[0,6,10,6],[1,19,10,19],[1,20,10,20]]}
["доп столбец для работы макроса и просто надо указать специальность","№ п/п","Индекс","Наименование учебных циклов, дисциплин (модулей), разделов","Трудоемкость, в з.е.",null,"Всего, в часах","Учебные занятия с преподавателем, в часах","Распределение учебного времени \nпо видам учебных занятий",null,null,null,null,null,null,null,null,null,null,null,null,null,"Время, отводимое на самостоятельную работу","Время, отводимое на экзамены и зачеты (выносимые на сессию)","Распределение учебного времени по курсам и семестрам",null,null,null,null,null,null,null,null,null,null,null,null,null,null,null,null,null,null,null,"Формы \nпромежуточного \nи итогового \nконтроля"]
[null,null,null,null,null,null,null,null,"Лекции","Семинары","Лабораторные работы","Практические занятия","Групповые упражнения ","Групповые занятия","Практические выездные занятия","Игры","Теоретические (научно-практические) конференции","Контрольные работы (занятия)","Консультации","Выполнение курсовых  работ \n(проектов, задач)","Учебные занятия других видов","Экзамены, зачеты, защиты курсовых  работ (проектов, задач), защиты отчетов о выполнении программ практик и индивидуальных заданий",null,null,"1 курс",null,null,null,"2 курс",null,null,null,"3 курс",null,null,null,"4 курс",null,null,null,"5 курс",null,null,null,null,null,null,null,null,null,null," - пп"]
[]
[null,null,null,null,null,null,null,null,null,null,null,null,null,null,null,null,null,null,null,null,null,null,null,null,"1 семестр",null,"2 семестр",null,"3 семестр",null,"4 семестр",null,"5 семестр",null,"6 семестр",null,"7 семестр",null,"8 семестр",null,"9 семестр",null,"10 семестр",null,"экзамены","зачеты"]
[null,null,null,null,null,null,null,null,null,null,null,null,null,null,null,null,null,null,null,null,null,null,null,null,null,null,null,null,null,null,null,null,null,null,null,null,null,null,null,null,null,null,null,null,null,"по дисциплинам (практикам)",null,"по курсовым работам\n(проектам, задачам)"]
[null,null,null,null,"Обязательная часть","Вариативная часть"]
[]
[]
[]
[null,null,null,null,null,null,null,null,null,null,null,null,null,null,null,null,null,null,null,null,null,null,null,null,null,null,null,null,null,null,null,null,null,null,null,null,null,null,null,null,null,null,null,null,null,"с оценкой","без оценки"]
[null,null,null,null,null,null,null,null,null,null,null,null,null,null,null,null,null,null,null,null,null,null,null,null,"чыса учебных занятий","часы на СР","чыса учебных занятий","часы на СР","чыса учебных занятий","часы на СР","чыса учебных занятий","часы на СР","чыса учебных занятий","часы на СР","чыса учебных занятий","часы на СР","чыса учебных занятий","часы на СР","чыса учебных занятий","часы на СР","чыса учебных занятий","часы на СР","чыса учебных занятий","часы на СР",null,null,null,null,"В цвета красить не надо"]
["специальность 1",null,"Блок 1","ДИСЦИПЛИНЫ (МОДУЛИ)"]
["специальность 1",null,null,"ГУМАНИТАРНЫЙ, СОЦИАЛЬНО-ЭКОНОМИЧЕСКИЙ ЦИКЛ",{"$f":"SUM(E14:E19)","v":0},0,0,0,0,0,0,0,0,0,0,0,0,0,0,0,0,0,0,0,30,30,30,40,10,20,10,20,40,40,45,55,0,0,10,10,50,100,50,100]
["специальность 1",null,null,"Дисциплина1",null,null,null,null,null,null,null,null,null,null,null,null,null,null,null,null,null,null,null,null,20,10,null,null,null,null,null,null,null,null,null,null,null,null,null,null,null,null,null,null,1]
["специальность 1",null,null,"Дисциплина2",null,null,null,null,null,null,null,null,null,null,null,null,null,null,null,null,null,null,null,null,null,null,20,20,null,null,null,null,null,null,null,null,null,null,null,null,null,null,null,null,null,2]
["специальность 1",null,null,"Дисциплина3",null,null,null,null,null,null,null,null,null,null,null,null,null,null,null,null,null,null,null,null,10,20,10,20,10,20,10,20,null,null,null,null,null,null,null,null,null,null,null,null,"1,2,4"]
["специальность 1",null,null,"Дисциплина4",null,null,null,null,null,null,null,null,null,null,null,null,null,null,null,null,null,null,null,null,null,null,null,null,null,null,null,null,40,40,null,null,null,null,null,null,null,null,null,null,null,null,5]
["специальность 1",null,null,"Дисциплина5",null,null,null,null,null,null,null,null,null,null,null,null,null,null,null,null,null,null,null,null,null,null,null,null,null,null,null,null,null,null,null,null,null,null,10,10,50,100,50,100,null,null,null,"8,9,10"]
["специальность 1",null,null,"Дисциплина6",null,null,null,null,null,null,null,null,null,null,null,null,null,null,null,null,null,null,null,null,null,null,null,null,null,null,null,null,null,null,45,55,null,null,null,null,null,null,null,null,null,null,6]
[]
["специальность 1",null,null,"Дисциплина1",null,null,null,null,null,null,null,null,null,null,null,null,null,null,null,null,null,null,null,null,20,10,null,null,null,null,null,null,null,null,null,null,null,null,null,null,null,null,null,null,1,null,null,null,"экзамены",1]
["специальность 1",null,null,"Дисциплина2",null,null,null,null,null,null,null,null,null,null,null,null,null,null,null,null,null,null,null,null,null,null,20,20,null,null,null,null,null,null,null,null,null,null,null,null,null,null,null,null,null,2,null,null,"с оценкой",2]
["специальность 1",null,null,"Дисциплина3",null,null,null,null,null,null,null,null,null,null,null,null,null,null,null,null,null,null,null,null,10,20,null,null,null,null,null,null,null,null,null,null,null,null,null,null,null,null,null,null,1,null,null,null,"экзамены",1]
["специальность 1",null,null,"Дисциплина3",null,null,null,null,null,null,null,null,null,null,null,null,null,null,null,null,null,null,null,null,null,null,10,20,null,null,null,null,null,null,null,null,null,null,null,null,null,null,null,null,2,null,null,null,"экзамены",2]
["специальность 1",null,null,"Дисциплина3",null,null,null,null,null,null,null,null,null,null,null,null,null,null,null,null,null,null,null,null,null,null,null,null,10,20,10,20,null,null,null,null,null,null,null,null,null,null,null,null,4,null,null,null,"экзамены",4]
["специальность 1",null,null,"Дисциплина4",null,null,null,null,null,null,null,null,null,null,null,null,null,null,null,null,null,null,null,null,null,null,null,null,null,null,null,null,40,40,null,null,null,null,null,null,null,null,null,null,null,null,5,null,"без оценки",5]
["специальность 1",null,null,"Дисциплина5",null,null,null,null,null,null,null,null,null,null,null,null,null,null,null,null,null,null,null,null,null,null,null,null,null,null,null,null,null,null,null,null,null,null,10,10,null,null,null,null,null,null,null,8,"по курсовым работам\n(проектам, задачам)",8]
["специальность 1",null,null,"Дисциплина5",null,null,null,null,null,null,null,null,null,null,null,null,null,null,null,null,null,null,null,null,null,null,null,null,null,null,null,null,null,null,null,null,null,null,null,null,50,100,null,null,null,null,null,9,"по курсовым работам\n(проектам, задачам)",9]
["специальность 1",null,null,"Дисциплина5",null,null,null,null,null,null,null,null,null,null,null,null,null,null,null,null,null,null,null,null,null,null,null,null,null,null,null,null,null,null,null,null,null,null,null,null,null,null,50,100,null,null,null,10,"по курсовым работам\n(проектам, задачам)",10]
["специальность 1",null,null,"Дисциплина6",null,null,null,null,null,null,null,null,null,null,null,null,null,null,null,null,null,null,null,null,null,null,null,null,null,null,null,null,null,null,45,55,null,null,null,null,null,null,null,null,null,null,6,null,"без оценки",6]